bitfinex-derivatives/quotes_ETHF0:USTF0_20250213
["timestamp","ask_amount","ask_price","bid_price","bid_amount"]
[1739447476370,0.75312,2655.2,2655.1,0.5697]
[1739447476671,0.75315,2655.2,2654.9,41.55321]
[1739447476865,0.00564844,2655.4,2655.1,3.2078]
[1739447477068,0.00564844,2655.4,2655.2,0.75311]
[1739447477265,0.00564844,2655.4,2654.9,40.8]
[1739447477472,0.75314,2655.2,2654.9,40.8]
[1739447477669,0.00564844,2655.4,2654.9,40.8]
[1739447477869,0.75872844,2655.4,2654.9,40.8]
[1739447478070,0.00564844,2655.4,2655.1,3.96094]
[1739447478370,0.00564844,2655.4,2655.3,0.7531]
[1739447478767,0.00564844,2655.4,2655.1,3.2078]
[1739447478972,0.75311,2655.3,2655.1,3.2078]
[1739447479674,0.00564844,2655.4,2654.9,40.8]
[1739447479878,0.00564844,2655.4,2654.7,4.3724]
[1739447480079,0.75319,2655.0,2654.7,5.12565]
[1739447480276,3.111096,2655.0,2654.7,3.2078]
[1739447480471,0.75349,2653.9,2652.9,3.2078]
[1739447480677,6.318896,2653.0,2652.6,2.6116329]
[1739447480973,3.2078,2652.7,2652.2,4.97096897]
[1739447481174,3.2078,2652.7,2652.2,3.111096]
[1739447481476,0.00564844,2653.1,2652.6,2.6116329]
[1739447481666,3.2078,2652.7,2652.4,2.6116329]
[1739447481872,3.2078,2652.7,2652.1,0.6162]
[1739447482067,3.2078,2652.7,2652.6,2.6116329]
[1739447482573,3.21344844,2653.1,2652.6,4.5006329]
[1739447482773,3.21344844,2653.1,2653.0,2.6116329]
[1739447483168,3.2078,2653.4,2653.0,2.6116329]
[1739447483371,3.2078,2653.7,2652.8,5.009096]
[1739447483574,3.2078,2653.7,2653.5,2.6116329]
[1739447483771,3.2078,2653.7,2653.6,43.4116329]
[1739447483972,3.2078,2654.0,2653.6,43.4116329]
[1739447484277,3.2078,2654.0,2653.6,40.8]
[1739447484578,3.2078,2654.0,2653.9,2.6116329]
[1739447484874,0.0078,2654.0,2653.9,2.6116329]
[1739447485183,3.7627,2655.3,2653.9,11.1298]
[1739447485380,0.5953,2655.4,2655.2,2.6116329]
[1739447485681,3.111096,2655.8,2655.3,2.6116329]
[1739447485682,3.2078,2655.8,2655.3,2.6116329]
[1739447485879,6.318896,2656.1,2655.6,2.6116329]
[1739447486077,3.2078,2656.8,2656.0,2.6116329]
[1739447486276,3.2078,2656.8,2655.7,3.2078]
[1739447486277,3.2078,2656.5,2656.3,2.6116329]
[1739447486481,3.111096,2656.4,2655.7,2.6116329]
[1739447486779,0.75292,2656.0,2655.6,0.00564844]
[1739447486981,3.96068,2656.1,2656.0,2.6116329]
[1739447487282,3.2078,2656.1,2655.8,2.6116329]
[1739447487472,0.75297,2655.8,2655.7,2.6116329]
[1739447487982,0.75295,2655.9,2655.7,2.6116329]
[1739447488183,0.7529,2656.0,2655.8,2.6116329]
[1739447488382,0.75293,2655.9,2655.8,2.6116329]
[1739447488578,0.75298,2655.7,2655.6,0.00564844]
[1739447488779,3.96078,2655.7,2655.6,0.00564844]
[1739447490171,3.2078,2655.7,2655.0,3.2078]
[1739447490479,3.2078,2655.7,2655.2,2.6116329]
[1739447490674,3.2078,2655.7,2655.6,2.6116329]
[1739447490984,0.75301,2655.6,2655.5,2.6116329]
[1739447491378,0.75307,2655.4,2655.3,0.00564844]
[1739447491678,3.96087,2655.4,2655.3,0.00564844]
[1739447491883,3.96087,2655.4,2655.3,2.61728134]
[1739447492279,3.96087,2655.4,2655.3,0.00564844]
[1739447493187,0.75329,2654.7,2654.4,3.2078]
[1739447493385,0.75324,2654.8,2654.7,2.6116329]
[1739447493586,3.2078,2655.0,2654.6,2.6116329]
[1739447493882,3.2078,2655.0,2654.3,0.75337]
[1739447493883,0.75322,2654.9,2654.7,2.6116329]
[1739447494280,3.2078,2655.0,2654.8,2.6116329]
[1739447494686,3.2078,2655.3,2654.9,2.6116329]
[1739447494983,3.9609,2655.3,2655.2,2.6116329]
[1739447495683,3.2078,2655.3,2655.2,2.6116329]
[1739447495884,3.9609,2655.3,2655.2,2.6116329]
[1739447496089,3.21344844,2655.6,2655.3,0.75307]
[1739447496288,0.00564844,2655.6,2655.5,2.6116329]
[1739447496978,0.75865844,2655.6,2655.5,2.6116329]
[1739447497173,0.7532,2655.0,2654.8,3.7818]
[1739447497384,0.75321,2654.9,2654.8,2.6116329]
[1739447497575,0.75327,2654.7,2654.5,3.2078]
[1739447497774,0.75324,2654.8,2654.7,2.6116329]
[1739447498581,0.75318,2655.0,2654.7,3.3648829]
[1739447498775,0.75315,2655.1,2655.0,2.6116329]
[1739447499079,0.75315,2655.1,2654.8,0.75322]
[1739447499080,3.21344844,2655.6,2655.1,2.6116329]
[1739447499282,0.75308,2655.4,2655.3,2.6116329]
[1739447500090,3.21344844,2655.6,2655.3,2.6116329]
[1739447500386,3.96646844,2655.6,2655.5,2.6116329]
[1739447500687,0.75304,2655.5,2655.4,2.6116329]
[1739447500879,3.21344844,2655.6,2655.5,2.6116329]
[1739447501076,3.21344844,2655.6,2655.5,3.3646729]
[1739447501283,0.75865844,2655.6,2655.5,2.6116329]
[1739447501482,0.00564844,2655.6,2655.5,2.6116329]
[1739447501677,0.75865844,2655.6,2655.5,2.6116329]
[1739447503682,3.21344844,2655.6,2655.0,0.5562]
[1739447503986,3.21344844,2655.6,2655.3,2.6116329]
[1739447504181,0.75307,2655.4,2655.3,2.6116329]
[1739447505289,0.75318,2655.0,2654.9,0.5634]
[1739447505479,0.75327,2654.7,2654.6,3.2078]
[1739447505678,0.75326,2654.8,2654.6,5.8194329]
[1739447505990,3.2078,2655.2,2654.6,3.2078]
[1739447506186,0.75315,2655.1,2654.9,0.7532]
[1739447506393,3.96093,2655.2,2655.1,2.6116329]
[1739447506690,1.93,2655.5,2655.1,2.6116329]
[1739447506691,3.2078,2655.5,2655.1,2.6116329]
[1739447506882,3.2078,2655.5,2655.2,2.6116329]
[1739447507082,0.7531,2655.3,2655.2,2.6116329]
[1739447507281,0.75307,2655.4,2655.3,2.6116329]
[1739447507891,3.2078,2655.5,2655.3,2.6116329]
[1739447508084,0.75307,2655.4,2655.3,2.6116329]
[1739447508587,0.75307,2655.4,2655.3,3.3647329]
[1739447508984,0.75307,2655.4,2655.3,2.6116329]
[1739447509385,3.2078,2655.5,2654.5,3.2078]
[1739447509588,6.32618259,2655.2,2654.7,2.6116329]
[1739447509787,1.88295,2655.1,2654.6,2.6116329]
[1739447509986,0.75327,2654.7,2654.6,2.6116329]
[1739447510197,0.75324,2654.8,2654.7,2.6116329]
[1739447510392,0.75338,2654.3,2654.2,0.5695]
[1739447510588,0.75337,2654.4,2654.3,2.6116329]
[1739447511391,0.75337,2654.4,2653.7,3.7812]
[1739447511392,3.2078,2654.5,2653.7,3.7812]
[1739447511701,0.75341,2654.2,2654.1,2.6116329]
[1739447512091,3.96121,2654.2,2654.1,2.6116329]
[1739447512296,3.2078,2654.2,2654.1,2.6116329]
[1739447512594,3.2078,2654.2,2654.1,3.3650729]
[1739447512793,3.96121,2654.2,2654.1,2.6116329]
[1739447513592,3.96121,2654.2,2653.6,3.7697]
[1739447513593,3.2078,2654.2,2653.6,3.7697]
[1739447513788,0.75351,2653.9,2653.8,2.6116329]
[1739447514492,3.21344844,2654.2,2653.6,3.2078]
[1739447514692,3.21344844,2654.2,2653.7,2.6116329]
[1739447514896,0.75352,2653.8,2653.7,2.6116329]
[1739447515094,5.09698844,2654.2,2653.7,2.6116329]
[1739447515293,0.75371,2653.2,2652.9,3.2078]
[1739447515596,3.11838259,2653.7,2653.3,2.6116329]
[1739447515804,0.75358,2653.6,2653.3,0.75366]
[1739447516099,0.75358,2653.6,2653.5,2.6116329]
[1739447516300,3.2078,2653.8,2653.4,2.6116329]
[1739447516501,0.75358,2653.7,2653.6,2.6116329]
[1739447516701,3.2078,2653.8,2653.6,2.6116329]
[1739447516897,0.75355,2653.7,2653.6,2.6116329]
[1739447517301,0.75351,2653.9,2653.6,3.3651929]
[1739447517498,0.75344,2654.1,2654.0,2.6116329]
[1739447517700,0.00564844,2654.2,2654.1,2.6116329]
[1739447518105,0.00564844,2654.2,2653.6,3.2078]
[1739447518301,0.75346,2654.0,2653.9,2.6116329]
[1739447518508,0.75352,2653.8,2653.7,2.6116329]
[1739447520000,0.00564844,2654.2,2653.7,2.6116329]
[1739447520207,0.00564844,2654.2,2654.1,2.6116329]
[1739447520402,0.75905844,2654.2,2654.1,43.4116329]
[1739447520706,0.75905844,2654.2,2654.1,2.6116329]
[1739447520908,0.00564844,2654.2,2654.1,2.6116329]
[1739447521112,0.75905844,2654.2,2654.1,2.6116329]
[1739447521606,0.00564844,2654.2,2654.1,2.6116329]
[1739447521805,0.75905844,2654.2,2654.1,2.6116329]
[1739447523107,3.96685844,2654.2,2654.1,2.6116329]
[1739447523404,3.96685844,2654.2,2653.6,3.2078]
[1739447523405,0.75355,2653.7,2653.6,3.2078]
[1739447523902,0.75355,2653.7,2653.6,2.6116329]
[1739447524205,0.75358,2653.6,2652.7,4.3953]
[1739447524406,3.11838259,2653.1,2652.7,2.6116329]
[1739447524612,0.75381,2652.8,2652.7,2.6116329]
[1739447524807,3.87219259,2652.8,2652.7,2.6116329]
[1739447525005,3.11838259,2652.8,2652.1,1.769]
[1739447525305,0.75392,2652.4,2652.3,2.6116329]
[1739447525507,3.87230259,2652.5,2652.3,2.6116329]
[1739447525708,3.11838259,2652.5,2652.3,5.8194329]
[1739447525908,3.21344844,2652.7,2652.4,2.6116329]
[1739447526210,0.00564844,2652.7,2652.6,5.8194329]
[1739447526505,0.00564844,2652.7,2652.6,2.6116329]
[1739447526709,0.75398,2652.2,2652.1,1.769]
[1739447527207,3.2078,2652.3,2652.1,3.1931329]
[1739447527406,0.00564844,2652.7,2652.3,0.75393]
[1739447527602,0.75947844,2652.7,2652.6,2.6116329]
[1739447528508,0.75947844,2652.7,2652.4,0.00436009]
[1739447528509,0.75389,2652.5,2652.4,0.00436009]
[1739447528811,0.75389,2652.5,2652.4,2.61599299]
[1739447530008,0.75389,2652.5,2652.4,0.00436009]
[1739447530204,3.87227259,2652.5,2652.4,9e-08]
[1739447530412,0.754,2652.1,2652.0,0.00304684]
[1739447530603,3.11838259,2652.1,2652.0,0.00304684]
[1739447530907,3.12403103,2652.7,2652.0,11.82247974]
[1739447531112,0.75947844,2652.7,2652.6,2.6116329]
[1739447531302,7.08566103,2652.7,2652.6,2.6116329]
[1739447531503,7.08566103,2652.7,2652.6,43.4116329]
[1739447532010,3.10311034,2652.7,2652.6,43.36012336]
[1739447532315,6.32618259,2653.3,2652.6,49.36012336]
[1739447532616,3.11838259,2653.3,2653.2,2.56012336]
[1739447532806,3.11838259,2653.6,2653.2,5.76792336]
[1739447533107,3.11838259,2653.6,2653.5,2.56012336]
[1739447533312,3.87196259,2653.6,2653.5,2.56012336]
[1739447533717,3.11838259,2653.6,2653.5,2.56012336]
[1739447535013,3.87196259,2653.6,2653.5,2.56012336]
[1739447535216,3.11838259,2653.6,2653.5,2.56012336]
[1739447536013,3.11838259,2653.6,2653.5,3.31373336]
[1739447536214,0.00564844,2653.7,2653.5,3.31373336]
[1739447536412,0.00564844,2653.7,2653.6,2.56012336]
[1739447536617,0.75919844,2653.7,2653.6,2.56012336]
[1739447537018,0.00564844,2653.7,2653.6,2.56012336]
[1739447537213,0.75919844,2653.7,2653.6,2.56012336]
[1739447538522,0.00564844,2653.7,2653.6,2.56012336]
[1739447538722,0.75919844,2653.7,2653.6,2.56012336]
[1739447539122,0.75366,2653.4,2653.2,3.2078]
[1739447539518,0.75366,2653.4,2653.3,2.56012336]
[1739447540015,0.00564844,2653.7,2653.3,2.56012336]
[1739447540230,0.00564844,2653.7,2653.6,2.56012336]
[1739447540422,0.75919844,2653.7,2653.6,2.56012336]
[1739447540722,0.00564844,2653.7,2653.6,3.31370336]
[1739447541924,0.00564844,2653.7,2653.6,2.56012336]
[1739447542319,0.75919844,2653.7,2653.6,2.56012336]
[1739447542723,0.75372,2653.1,2653.0,1.1648]
[1739447542920,3.11838259,2653.2,2652.5,3.2078]
[1739447543118,0.75378,2652.9,2652.8,2.56012336]
[1739447543320,3.87216259,2652.9,2652.8,2.56012336]
[1739447543519,3.11838259,2652.9,2652.5,3.2078]
[1739447543823,0.75381,2652.8,2652.7,2.56012336]
[1739447544723,3.11838259,2652.9,2652.4,0.59154844]
[1739447544917,3.11838259,2652.9,2652.6,2.56012336]
[1739447545123,3.11838259,2652.9,2652.4,0.59154844]
[1739447545324,3.11838259,2652.9,2652.8,2.50861382]
[1739447545514,7.07996259,2652.9,2652.8,2.50861382]
[1739447545718,3.96158,2652.9,2652.8,2.50861382]
[1739447546026,3.2078,2652.9,2652.8,2.50861382]
[1739447546230,3.96158,2652.9,2652.8,2.50861382]
[1739447546630,3.9615,2653.2,2652.8,8.50861382]
[1739447546921,3.9615,2653.2,2652.9,42.4352]
[1739447546922,3.2078,2653.2,2652.9,42.4352]
[1739447547127,3.2078,2653.2,2653.1,2.50861382]
[1739447547532,3.96149,2653.2,2653.1,2.50861382]
[1739447548328,0.75369,2653.2,2653.1,2.50861382]
[1739447548729,3.2078,2653.5,2653.1,43.30861382]
[1739447548931,3.96141,2653.5,2653.4,2.50861382]
[1739447549226,7.07979259,2653.5,2653.4,2.50861382]
[1739447549431,6.32618259,2653.5,2652.9,0.5493]
[1739447549625,6.32618259,2653.2,2653.1,0.58954382]
[1739447549831,7.07987259,2653.2,2653.1,0.58954382]
[1739447550026,0.75383,2652.7,2652.6,0.5411]
[1739447550433,0.75386,2652.6,2652.5,0.5546]
[1739447551628,3.2078,2652.8,2652.4,0.00564844]
[1739447551629,0.75389,2652.5,2652.4,0.00564844]
[1739447552332,0.75387,2652.6,2652.4,0.75954844]
[1739447552926,3.96169,2652.5,2652.4,0.00564844]
[1739447553129,0.75389,2652.5,2652.4,0.00564844]
[1739447554730,3.96169,2652.5,2652.4,8.44e-06]
[1739447555033,3.2078,2652.5,2652.4,8.44e-06]
[1739447555248,3.2078,2652.5,2652.4,0.75392844]
[1739447555432,3.2078,2652.9,2652.4,8.44e-06]
[1739447555627,3.2078,2653.2,2652.5,3.2078]
[1739447555939,3.2078,2653.2,2652.6,0.587]
[1739447556133,0.75365,2653.4,2653.1,0.75371]
[1739447556340,3.2078,2653.4,2653.0,0.5482]
[1739447556530,0.75372,2653.1,2653.0,0.5482]
[1739447556835,3.96152,2653.1,2653.0,0.5482]
[1739447557232,3.2078,2653.1,2653.0,0.5482]
[1739447557433,6.32618259,2653.5,2653.0,0.5482]
[1739447557736,3.2078,2653.1,2652.6,0.587]
[1739447558239,3.2078,2653.1,2652.9,0.75378]
[1739447558438,3.96145,2653.4,2653.1,0.7537]
[1739447558737,3.2078,2653.4,2652.7,1.88459]
[1739447559037,3.96145,2653.4,2653.1,0.75371]
[1739447559235,3.2078,2653.4,2653.3,0.75366]
[1739447559432,3.2078,2653.4,2652.9,3.2078]
[1739447559634,3.21344844,2653.7,2653.2,3.2078]
[1739447559836,3.21344844,2653.7,2653.6,0.75358]
[1739447560040,0.00564844,2653.7,2653.6,0.75358]
[1739447560330,0.00564844,2653.7,2653.3,1.1483]
[1739447560535,0.00564844,2653.7,2653.3,41.9483]
[1739447560729,0.00564844,2653.7,2653.3,1.1483]
[1739447561132,0.75359,2653.6,2653.3,42.70195]
[1739447561331,0.00564844,2653.7,2653.3,41.9483]
[1739447561533,0.00564844,2653.7,2653.3,42.11925]
[1739447561730,0.00564844,2653.7,2653.5,0.75361]
[1739447561932,0.00564844,2653.7,2653.3,0.5656]
[1739447562136,0.7536,2653.6,2653.3,1.31924]
[1739447562333,0.00564844,2653.7,2653.3,0.5656]
[1739447562538,3.2078,2653.4,2653.0,0.5827]
[1739447562742,0.75371,2653.2,2652.9,0.75377]
[1739447563037,3.2078,2653.4,2652.8,1.1862]
[1739447563238,0.75368,2653.3,2652.8,1.1862]
[1739447563431,3.2078,2653.4,2652.8,1.1862]
[1739447563634,1.1182,2653.6,2652.8,1.1862]
[1739447563939,0.75372,2653.2,2652.9,0.75376]
[1739447564132,3.2078,2653.4,2652.8,1.1862]
[1739447564439,3.2078,2653.4,2652.8,0.5909]
[1739447565135,0.75378,2652.9,2652.8,0.5909]
[1739447565330,3.2078,2653.1,2652.5,1.1491]
[1739447565533,0.75385,2652.7,2652.5,1.1491]
[1739447565734,0.5951,2653.0,2652.4,8.44e-06]
[1739447566232,0.75383,2652.8,2652.4,8.44e-06]
[1739447566434,0.5951,2653.0,2652.4,8.44e-06]
[1739447566630,0.5951,2653.0,2652.4,3.20780844]
[1739447567028,0.75371,2653.2,2652.9,0.75376]
[1739447567639,3.2078,2653.4,2652.6,0.5476]
[1739447567840,0.75379,2652.9,2652.7,0.75382]
[1739447568036,3.2078,2653.1,2652.6,1.30145]
[1739447568235,3.2078,2652.8,2652.4,8.44e-06]
[1739447568435,0.75388,2652.6,2652.4,8.44e-06]
[1739447569038,0.75389,2652.5,2652.4,8.44e-06]
[1739447569236,3.2078,2652.8,2652.4,8.44e-06]
[1739447569435,3.2078,2652.5,2652.4,8.44e-06]
[1739447569830,3.2078,2652.8,2652.4,8.44e-06]
[1739447570141,3.2078,2653.4,2653.1,0.75371]
[1739447570344,3.2078,2653.4,2652.6,40.8]
[1739447570535,3.2078,2653.4,2653.3,0.75366]
[1739447570741,3.21344844,2653.7,2652.9,1.933]
[1739447570936,3.96700844,2653.7,2653.4,0.75362]
[1739447571747,3.96700844,2653.7,2653.1,3.2078]
[1739447572038,3.21344844,2653.7,2653.1,3.2078]
[1739447572234,3.96700844,2653.7,2653.4,0.75362]
[1739447572442,0.75358,2653.6,2653.4,0.75364]
[1739447572637,3.21344844,2653.7,2653.2,0.75367]
[1739447572831,3.21344844,2653.7,2653.1,3.2078]
[1739447573040,0.75362,2653.5,2653.2,0.75368]
[1739447573342,0.75362,2653.5,2653.1,3.2078]
[1739447573343,0.75363,2653.5,2653.1,0.75372]
[1739447573546,3.96701844,2653.7,2653.5,0.75361]
[1739447573752,3.96700844,2653.7,2653.1,3.2078]
[1739447574042,3.21344844,2653.7,2653.1,3.2078]
[1739447574437,0.75362,2653.5,2653.2,0.75368]
[1739447574739,3.21344844,2653.7,2653.1,3.2078]
[1739447574942,0.75361,2653.5,2653.3,0.75366]
[1739447575141,3.21344844,2653.7,2653.1,3.2078]
[1739447575345,3.21344844,2653.7,2653.5,0.7536]
[1739447575542,3.96700844,2653.7,2653.1,3.2078]
[1739447575743,3.96700844,2653.7,2653.4,0.75362]
[1739447575940,3.21344844,2653.7,2653.1,3.2078]
[1739447576345,3.21344844,2653.7,2653.6,0.75358]
[1739447576740,3.21344844,2653.7,2653.4,0.75363]
[1739447576941,0.00564844,2653.7,2653.6,0.75358]
[1739447577344,0.00564844,2653.7,2653.1,3.2078]
[1739447577543,0.00564844,2653.7,2653.3,0.5699]
[1739447577749,0.75921844,2653.7,2653.5,0.75359]
[1739447577951,0.75359,2653.6,2653.3,0.5699]
[1739447578245,3.21344844,2653.7,2653.3,0.5699]
[1739447578446,0.75358,2653.6,2653.3,1.32356]
[1739447578648,3.21344844,2653.7,2653.3,0.5699]
[1739447579244,0.75363,2653.5,2653.3,1.32356]
[1739447579445,3.21344844,2653.7,2653.3,0.5699]
[1739447579647,0.75363,2653.5,2653.3,1.32355]
[1739447580350,3.21344844,2653.7,2653.3,0.5699]
[1739447580647,0.00564844,2653.7,2653.6,0.75358]
[1739447581650,0.00564844,2653.7,2653.3,0.5699]
[1739447582151,0.75359,2653.6,2653.4,0.75361]
[1739447582453,3.21344844,2653.7,2653.6,0.75358]
[1739447582638,0.00564844,2653.7,2653.6,0.75358]
[1739447583354,4.53019,2654.3,2653.5,8.22918259]
[1739447583355,0.569,2654.3,2653.5,8.22918259]
[1739447583649,3.7741,2654.9,2653.8,3.11838259]
[1739447583850,0.5447,2654.8,2654.0,3.2078]
[1739447584046,0.75331,2654.6,2654.3,0.75335]
[1739447584248,0.75328,2654.7,2654.1,40.8]
[1739447584545,0.75328,2654.7,2654.6,0.75327]
[1739447584546,0.00564844,2654.7,2654.6,0.75327]
[1739447584942,0.00564844,2654.7,2654.4,3.2078]
[1739447585256,0.00564844,2654.7,2654.6,0.7533]
[1739447585453,0.00564844,2654.7,2654.5,0.5863]
[1739447585645,0.00564844,2654.7,2654.6,0.5957]
[1739447585842,0.00564844,2654.7,2654.1,44.01344844]
[1739447586042,0.75339,2654.3,2654.2,0.5957]
[1739447586251,0.75341,2654.2,2654.1,0.00564844]
[1739447586648,3.2078,2654.5,2654.1,0.00564844]
[1739447587151,0.75341,2654.2,2654.1,0.00564844]
[1739447588346,3.96121,2654.2,2654.1,0.00564844]
[1739447591956,3.2078,2654.2,2654.1,0.75908844]
[1739447592251,3.96121,2654.2,2654.1,0.00564844]
[1739447593149,3.90970046,2654.2,2654.1,0.00564844]
[1739447593850,3.90970046,2654.2,2654.1,8.44e-06]
[1739447594050,9.90970046,2654.2,2654.1,8.44e-06]
[1739447595461,10.51812561,2654.2,2654.1,8.44e-06]
[1739447597854,0.75366,2653.3,2653.2,0.75367]
[1739447598060,0.75365,2653.4,2653.2,0.75368]
[1739447598259,3.2078,2653.5,2653.3,0.75364]
[1739447598447,0.75364,2653.4,2653.2,0.75368]
[1739447598652,3.2078,2653.8,2653.0,1.1739]
[1739447598855,0.7536,2653.6,2653.0,1.1739]
[1739447599051,3.2078,2653.8,2653.0,1.1739]
[1739447599252,3.2078,2653.8,2653.2,6.32618259]
[1739447599463,3.2078,2653.8,2653.7,0.75355]
[1739447599655,3.96133,2653.8,2653.7,0.75355]
[1739447599855,3.2078,2654.3,2653.9,0.75348]
[1739447600055,3.2078,2654.6,2653.8,3.2078]
[1739447600266,3.2078,2654.6,2653.9,0.568]
[1739447600464,0.75342,2654.2,2654.0,0.75346]
[1739447600758,3.2078,2654.6,2653.9,0.568]
[1739447600964,0.75337,2654.4,2653.9,0.568]
[1739447601261,0.75337,2654.4,2654.1,0.75342]
[1739447601659,3.2078,2654.6,2654.1,0.75342]
[1739447601961,3.2078,2654.6,2654.0,0.75345]
[1739447602258,0.75334,2654.5,2654.2,0.7534]
[1739447602453,3.2078,2654.6,2653.9,0.568]
[1739447602756,3.2078,2654.6,2654.4,0.75333]
[1739447602955,3.9611,2654.6,2654.4,0.75334]
[1739447603257,3.9611,2654.6,2654.4,0.75335]
[1739447603454,3.2078,2654.6,2654.4,0.75334]
[1739447603661,3.96111,2654.6,2654.3,0.75336]
[1739447603850,3.2078,2654.6,2654.4,0.75334]
[1739447604051,0.00564844,2654.7,2654.3,1.875]
[1739447604251,0.00564844,2654.7,2654.6,0.7533]
[1739447604960,0.75307,2655.4,2655.1,0.75314]
[1739447605151,0.75308,2655.4,2655.1,0.75314]
[1739447605348,3.80646,2655.3,2655.0,0.75317]
[1739447605548,3.80646,2655.3,2655.1,40.8]
[1739447605853,3.05335,2655.3,2655.1,40.8]
[1739447606461,3.80645,2655.3,2655.1,41.3559]
[1739447606758,3.05335,2655.3,2655.2,0.75312]
[1739447607257,3.05335,2655.3,2655.2,3.96092]
[1739447607460,2.15185,2655.3,2655.2,9.96092]
[1739447607765,2.15185,2655.3,2655.2,3.96092]
[1739447608357,2.15185,2655.3,2655.2,9.96092]
[1739447608560,3.2078,2656.7,2656.3,0.75281]
[1739447608754,3.2078,2656.7,2656.1,1.871]
[1739447608960,3.2078,2656.7,2656.2,2.4257]
[1739447609161,3.96051,2656.7,2656.3,41.5528]
[1739447609361,3.2078,2656.7,2656.3,40.8]
[1739447609551,3.96052,2656.7,2656.3,41.55281]
[1739447609957,3.2078,2656.7,2656.3,42.674]
[1739447610151,3.2078,2656.7,2656.4,0.75277]
[1739447610359,3.2078,2656.7,2656.3,42.674]
[1739447610360,3.96052,2656.7,2656.3,43.4268]
[1739447610656,0.00564844,2656.8,2656.3,42.674]
[1739447610857,0.00564844,2656.8,2656.5,0.75274]
[1739447611058,0.00564844,2656.8,2656.3,42.674]
[1739447611258,0.75832844,2656.8,2656.4,0.75277]
[1739447611565,0.75833844,2656.8,2656.4,2.62478]
[1739447611862,0.00564844,2656.8,2656.4,1.872]
[1739447612262,0.75273,2656.6,2656.4,1.872]
[1739447612470,0.00564844,2656.8,2656.4,1.872]
[1739447612654,0.00564844,2656.8,2656.2,3.76714844]
[1739447612655,0.75272,2656.7,2656.3,0.75281]
[1739447612855,0.00564844,2656.8,2656.5,0.75274]
[1739447613061,0.00564844,2656.8,2656.3,40.8]
[1739447613264,0.75271,2656.7,2656.3,41.5528]
[1739447613569,0.75271,2656.7,2656.4,0.75276]
[1739447613769,0.75271,2656.7,2656.3,41.55279]
[1739447614066,0.75831844,2656.8,2656.5,0.75274]
[1739447614268,0.00564844,2656.8,2656.2,5.63614844]
[1739447614670,0.75832844,2656.8,2656.5,0.75275]
[1739447614859,0.00564844,2656.8,2656.5,0.75274]
[1739447615065,0.75832844,2656.8,2656.5,0.75274]
[1739447615282,0.00564844,2656.8,2656.2,5.63614844]
[1739447615572,0.7527,2656.7,2656.2,5.63614844]
[1739447615967,0.7527,2656.7,2656.4,0.75276]
[1739447616372,0.00564844,2656.8,2656.2,5.63614844]
[1739447616574,0.75831844,2656.8,2656.6,0.75271]
[1739447617072,0.00564844,2656.8,2656.7,0.7527]
[1739447617267,0.00564844,2656.8,2656.7,1.3199]
[1739447617972,1.1253,2657.5,2657.1,0.75256]
[1739447618162,1.1253,2657.5,2656.9,3.2078]
[1739447618567,0.75251,2657.4,2657.2,0.75255]
[1739447618972,1.1253,2657.5,2657.0,0.5868]
[1739447619268,0.7526,2657.1,2656.9,3.96043]
[1739447619467,1.1253,2657.5,2657.1,0.75257]
[1739447619669,1.1253,2657.5,2656.9,3.2078]
[1739447619862,0.7525,2657.4,2657.2,0.75255]
[1739447620169,0.75252,2657.4,2657.1,0.75257]
[1739447620366,0.00564844,2657.6,2657.5,0.75247]
[1739447620576,0.00564844,2657.6,2657.1,6.32618259]
[1739447620764,0.75809844,2657.6,2657.1,6.92498259]
[1739447621075,0.75247,2657.5,2657.3,0.7525]
[1739447621369,0.75249,2657.5,2657.1,3.8066]
[1739447621764,0.00564844,2657.6,2657.1,3.8066]
[1739447622073,0.75254,2657.3,2657.1,4.55918]
[1739447622274,0.75252,2657.4,2657.2,0.75255]
[1739447622469,0.75252,2657.4,2657.1,3.8066]
[1739447622470,3.21344844,2657.6,2657.1,3.8066]
[1739447622777,0.75256,2657.2,2657.1,3.2078]
[1739447622979,0.7525,2657.5,2657.2,0.75254]
[1739447623168,3.21344844,2657.6,2657.2,0.75254]
[1739447623365,0.75248,2657.5,2657.3,0.75253]
[1739447623672,0.75248,2657.5,2657.1,3.2078]
[1739447623673,3.21344844,2657.6,2657.1,3.2078]
[1739447624268,0.00564844,2657.6,2657.2,0.5616]
[1739447624468,0.00564844,2657.6,2657.4,0.75249]
[1739447624469,0.75809844,2657.6,2657.4,0.75249]
[1739447624670,0.00564844,2657.6,2657.2,0.5616]
[1739447625072,0.75253,2657.3,2657.2,0.5616]
[1739447625578,3.21344844,2657.6,2657.2,0.5616]
[1739447625873,3.21344844,2657.6,2657.4,0.75248]
[1739447626078,3.21344844,2657.6,2657.2,0.5616]
[1739447626277,0.00564844,2657.6,2657.5,0.75247]
[1739447626874,0.00564844,2657.6,2657.4,1.859]
[1739447627068,0.75811844,2657.6,2657.4,2.61149]
[1739447627274,0.00564844,2657.6,2657.5,0.75247]
[1739447627578,0.75809844,2657.6,2657.4,2.61148]
[1739447627775,0.75247,2657.5,2657.4,1.859]
[1739447628376,1.32897,2657.5,2657.4,1.859]
[1739447628776,0.5765,2657.5,2656.8,3.2078]
[1739447628973,0.75263,2657.0,2656.6,1.86]
[1739447629178,0.75263,2657.0,2656.7,0.75267]
[1739447629378,3.2078,2657.2,2656.6,42.66]
[1739447629585,0.5717,2657.4,2656.8,1.88169]
[1739447629884,0.5717,2657.4,2657.3,0.75253]
[1739447630076,1.32421,2657.4,2656.7,1.88176]
[1739447630287,0.75254,2657.3,2657.1,0.75257]
[1739447630478,0.5717,2657.4,2656.9,3.2078]
[1739447630983,1.32422,2657.4,2657.2,0.75254]
[1739447631189,0.5717,2657.4,2657.2,0.75254]
[1739447631372,0.5717,2657.4,2656.9,3.2078]
[1739447631576,0.00564844,2657.6,2656.9,3.2078]
[1739447631577,0.00564844,2657.6,2657.2,3.2078]
[1739447631782,0.00564844,2657.6,2657.5,0.75247]
[1739447632380,0.00564844,2657.6,2657.5,41.55247]
[1739447632786,0.00564844,2657.6,2657.5,44.76027]
[1739447633184,0.00564844,2657.6,2657.5,41.55247]